bitfinex/quotes_BTCUSD_20240821
["timestamp","ask_amount","ask_price","bid_price","bid_amount"]
[1724276756169,2.34714932,61407.0,61406.0,0.002]
[1724276756170,2.34814932,61407.0,61406.0,0.002]
[1724276756407,2.33940205,61407.0,61406.0,0.001]
[1724276756655,2.35340205,61407.0,61406.0,0.002]
[1724276757161,2.28018735,61407.0,61406.0,0.002]
[1724276757412,2.35340205,61407.0,61406.0,0.002]
[1724276757663,2.28018735,61407.0,61406.0,0.002]
[1724276760916,2.00329317,61407.0,61406.0,0.002]
[1724276761683,1.95449235,61407.0,61406.0,0.002]
[1724276762699,1.95449235,61407.0,61406.0,0.0029086]
[1724276766780,1.95410035,61407.0,61406.0,0.0029086]
[1724276776633,2.00288912,61407.0,61406.0,0.0029086]
[1724276777069,1.95410035,61407.0,61406.0,0.0029086]
[1724276777253,2.00288912,61407.0,61406.0,0.0029086]
[1724276777486,2.00288912,61407.0,61402.0,0.75255728]
[1724276777487,0.488574,61403.0,61402.0,0.75255728]
[1724276777700,0.78927698,61403.0,61402.0,0.75255728]
[1724276778505,1.25197698,61403.0,61402.0,0.75255728]
[1724276778633,1.59169298,61403.0,61402.0,0.75355728]
[1724276779466,1.59169298,61403.0,61402.0,0.75255728]
[1724276779467,1.57769298,61403.0,61402.0,0.75255728]
[1724276779674,1.31259298,61403.0,61402.0,0.75355728]
[1724276779882,1.32059298,61403.0,61402.0,0.75455728]
[1724276780116,0.830874,61403.0,61402.0,0.75455728]
[1724276780673,0.820874,61403.0,61402.0,0.75355728]
[1724276781091,0.495158,61403.0,61402.0,0.75355728]
[1724276781290,0.307558,61403.0,61402.0,0.75355728]
[1724276782035,0.316558,61403.0,61402.0,0.75455728]
[1724276786279,0.202858,61403.0,61402.0,0.75455728]
[1724276786451,0.316558,61403.0,61402.0,0.75455728]
[1724276787047,0.316558,61403.0,61402.0,0.75546588]
[1724276788700,0.316558,61403.0,61402.0,0.75046588]
[1724276789968,0.316558,61403.0,61402.0,0.75040588]
[1724276790378,0.1537,61403.0,61402.0,0.75040588]
[1724276792705,0.2236,61403.0,61402.0,0.75040588]
[1724276792898,0.6033,61403.0,61402.0,0.75040588]
[1724276795540,0.766158,61403.0,61402.0,0.75040588]
[1724276797050,1.90730898,61403.0,61402.0,0.75040588]
[1724276797286,1.95619071,61403.0,61402.0,0.75040588]
[1724276797525,1.98062761,61403.0,61402.0,0.75040588]
[1724276798012,1.98063461,61403.0,61402.0,0.75040588]
[1724276798263,1.98354321,61403.0,61402.0,0.75040588]
[1724276798518,1.91021758,61403.0,61402.0,0.75040588]
[1724276798782,1.9230434,61403.0,61402.0,0.75040588]
[1724276799017,1.91395218,61403.0,61402.0,0.75040588]
[1724276799326,1.96283031,61403.0,61402.0,0.75040588]
[1724276799534,1.91395218,61403.0,61402.0,0.75040588]
[1724276800172,1.58823618,61403.0,61402.0,0.75040588]
[1724276800413,1.63711287,61403.0,61402.0,0.75040588]
[1724276800625,1.58823618,61403.0,61402.0,0.75040588]
[1724276801235,1.26252018,61403.0,61402.0,0.75033986]
[1724276805096,0.69922018,61403.0,61402.0,1.22933986]
[1724276805305,1.18582018,61403.0,61402.0,0.75033986]
[1724276806806,0.89892018,61403.0,61402.0,0.75033986]
[1724276807215,0.69922018,61403.0,61402.0,0.75033986]
[1724276811425,1.15912018,61403.0,61402.0,0.75033986]
[1724276812667,1.20799925,61403.0,61402.0,0.75033986]
[1724276816250,0.25838027,61403.0,61402.0,0.75033986]
[1724276816458,0.0466432,61403.0,61402.0,0.75033986]
[1724276817144,0.0466432,61403.0,61402.0,0.91320086]
[1724276817350,1.16162018,61403.0,61402.0,0.75033986]
[1724276817567,1.1612021,61403.0,61402.0,0.75033986]
[1724276817998,1.8126341,61403.0,61402.0,0.75033986]
[1724276819016,1.64950072,61403.0,61402.0,0.75033986]
[1724276819306,1.6006181,61403.0,61402.0,0.75033986]
[1724276819539,1.38489855,61403.0,61402.0,0.75033986]
[1724276820284,1.0103021,61403.0,61402.0,0.75033986]
[1724276820521,0.15992512,61403.0,61402.0,0.75033986]
[1724276821681,0.15992512,61403.0,61402.0,1.03683986]
[1724276824226,0.15992512,61403.0,61402.0,1.19970086]
[1724276824663,0.15992512,61403.0,61402.0,0.91320086]
[1724276828081,0.15992512,61403.0,61402.0,0.75033986]
[1724276828318,0.15992512,61403.0,61402.0,0.91320086]
[1724276829752,0.15992512,61403.0,61402.0,0.1657696]
[1724276829968,0.04622512,61403.0,61402.0,0.1657696]
[1724276832682,0.0236432,61403.0,61402.0,1.0896136]
[1724276833093,0.0236432,61403.0,61402.0,1.0916136]
[1724276833506,0.0236432,61403.0,61402.0,1.09360559]
[1724276833972,0.0466432,61403.0,61402.0,1.09360559]
[1724276834460,0.0466432,61403.0,61402.0,1.28630559]
[1724276835524,0.0376432,61403.0,61402.0,1.61102759]
[1724276836040,0.0296432,61403.0,61402.0,1.61002759]
[1724276836262,0.0296432,61403.0,61402.0,1.61402759]
[1724276836503,0.0296432,61403.0,61402.0,1.61002759]
[1724276836975,0.0306432,61403.0,61402.0,1.61502759]
[1724276837205,0.0306432,61403.0,61402.0,1.61802759]
[1724276837628,0.0306432,61403.0,61402.0,1.61502759]
[1724276837845,0.0306432,61403.0,61402.0,1.62002759]
[1724276840417,0.024826,61403.0,61402.0,1.62002759]
[1724276840625,0.001826,61403.0,61402.0,1.62002759]
[1724276844641,0.001826,61403.0,61402.0,2.87982759]
[1724276850394,0.001826,61403.0,61402.0,2.68712759]
[1724276850612,0.291425,61407.0,61406.0,1.140953]
[1724276850828,0.291425,61407.0,61406.0,1.14394499]
[1724276850829,0.314425,61407.0,61406.0,1.14394499]
[1724276851923,0.314425,61407.0,61406.0,1.14494499]
[1724276852348,0.501625,61407.0,61406.0,1.14494499]
[1724276852806,0.501625,61407.0,61406.0,1.14394499]
[1724276853011,0.501625,61407.0,61406.0,0.82024399]
[1724276853438,0.501625,61407.0,61406.0,0.82124399]
[1724276856465,0.501625,61407.0,61406.0,2.07921799]
[1724276857771,0.501625,61407.0,61406.0,2.07671799]
[1724276861573,0.51864786,61407.0,61406.0,2.07671799]
[1724276862692,0.52155646,61407.0,61406.0,2.07671799]
[1724276864163,0.52155646,61407.0,61406.0,2.073726]
[1724276864569,0.52155646,61407.0,61406.0,2.074726]
[1724276864800,0.52155646,61407.0,61406.0,2.07671799]
[1724276866179,1.49979644,61407.0,61406.0,1.260974]
[1724276866958,1.49979644,61407.0,61406.0,1.259974]
[1724276868357,1.50079644,61407.0,61406.0,1.257974]
[1724276868773,1.50079644,61407.0,61403.0,0.0009086]
[1724276868774,0.814277,61404.0,61403.0,0.0009086]
[1724276868978,1.89979098,61404.0,61403.0,0.0009086]
[1724276869191,1.99979098,61404.0,61403.0,0.0009086]
[1724276869400,2.02279098,61404.0,61403.0,0.0009086]
[1724276870617,2.35050198,61404.0,61403.0,0.0009086]
[1724276871562,1.467722,61403.0,61402.0,0.0009086]
[1724276871766,1.467722,61403.0,61391.0,1.257974]
[1724276871767,0.752287,61392.0,61391.0,1.257974]
[1724276871975,1.99361498,61392.0,61391.0,1.257974]
[1724276872811,1.140286,61388.0,61377.0,0.0009075]
[1724276873026,1.96628898,61388.0,61377.0,0.0009075]
[1724276873230,1.96628898,61388.0,61378.0,1.257974]
[1724276874068,1.98928898,61388.0,61378.0,1.257974]
[1724276874695,1.99828898,61388.0,61378.0,1.257974]
[1724276875132,1.99928898,61388.0,61378.0,1.257974]
[1724276875556,2.00928898,61388.0,61387.0,0.0019075]
[1724276875985,2.02888116,61388.0,61387.0,0.0019075]
[1724276876816,2.04590402,61388.0,61387.0,0.0019075]
[1724276878138,2.05575711,61388.0,61387.0,0.0019075]
[1724276878593,2.03516493,61388.0,61387.0,0.0019075]
[1724276880299,1.59566893,61388.0,61387.0,0.0019075]
[1724276880502,1.70936893,61388.0,61387.0,0.0019075]
[1724276881700,2.03477292,61388.0,61387.0,0.0019075]
[1724276883582,2.03677292,61388.0,61387.0,0.0019075]
[1724276884215,2.36256892,61388.0,61387.0,0.0019075]
[1724276886094,2.03677292,61388.0,61387.0,0.0019075]
[1724276886710,2.36256892,61388.0,61387.0,0.0019075]
[1724276887546,2.36256892,61388.0,61378.0,1.257974]
[1724276887547,1.610254,61379.0,61378.0,1.257974]
[1724276887771,1.98795698,61379.0,61378.0,1.257974]
[1724276889362,1.99895698,61379.0,61378.0,1.257974]
[1724276889872,2.02195698,61379.0,61378.0,1.257974]
[1724276890339,2.01095698,61379.0,61378.0,1.257974]
[1724276890571,2.03220395,61379.0,61378.0,1.257974]
[1724276890797,2.04320395,61379.0,61378.0,1.257974]
[1724276892226,2.06022681,61379.0,61378.0,1.257974]
[1724276895734,2.06022681,61379.0,61378.0,1.2588826]
[1724276897708,2.22620559,61379.0,61378.0,1.2588826]
[1724276897918,2.55204959,61379.0,61378.0,1.2588826]
[1724276898550,2.38807081,61379.0,61378.0,1.2588826]
[1724276900096,2.09512265,61364.0,61363.0,0.0009086]
[1724276900716,1.97813298,61364.0,61363.0,0.0009086]
[1724276900916,1.97913298,61364.0,61363.0,0.0009086]
[1724276901038,2.30405598,61364.0,61363.0,0.0009086]
[1724276901239,2.31305598,61364.0,61363.0,0.0009086]
[1724276901444,2.31505598,61364.0,61363.0,0.0009086]
[1724276901664,2.50203476,61364.0,61363.0,0.0009086]
[1724276901918,2.51503476,61364.0,61363.0,0.0009086]
[1724276902083,2.50203476,61364.0,61363.0,0.0009086]
[1724276902723,2.49103476,61364.0,61363.0,0.0009086]
[1724276902920,2.50503476,61364.0,61363.0,0.0009086]
[1724276903543,2.49103476,61364.0,61363.0,0.0009086]
[1724276903914,2.50503476,61364.0,61363.0,0.0009086]
[1724276904123,1.712337,61353.0,61352.0,0.0009086]
[1724276904300,1.97633998,61353.0,61352.0,0.0009086]
[1724276905350,1.98333998,61353.0,61352.0,0.0009086]
[1724276905732,1.140954,61352.0,61351.0,0.0049946]
[1724276905951,1.40495698,61352.0,61351.0,0.0049946]
[1724276906097,1.42795698,61352.0,61351.0,0.0049946]
[1724276906911,1.43395698,61352.0,61351.0,0.0049946]
[1724276907315,1.45097984,61352.0,61351.0,0.0049946]
[1724276907945,1.45797984,61352.0,61351.0,0.0049946]
[1724276908114,1.72087984,61352.0,61351.0,0.0049946]
[1724276908318,1.71987984,61352.0,61351.0,0.0049946]
[1724276908582,1.72087984,61352.0,61351.0,0.0049946]
[1724276908933,1.91667984,61352.0,61351.0,0.0049946]
[1724276909316,1.94408205,61352.0,61351.0,0.0049946]
[1724276909522,1.93208205,61352.0,61351.0,0.0049946]
[1724276909898,1.94268676,61352.0,61351.0,0.0049946]
[1724276910107,1.92868676,61352.0,61351.0,0.0049946]
[1724276910334,1.91468676,61352.0,61351.0,0.0049946]
[1724276910543,1.92868676,61352.0,61351.0,0.0049946]
[1724276910959,1.92668676,61352.0,61351.0,0.0049946]
[1724276911165,1.94068676,61352.0,61351.0,0.0049946]
[1724276911841,1.48298676,61352.0,61351.0,0.0049946]
[1724276912852,1.140993,61350.0,61349.0,0.009086]
[1724276913067,1.54169598,61350.0,61349.0,0.009086]
[1724276913487,1.21569798,61350.0,61349.0,0.009086]
[1724276914082,1.22869798,61350.0,61349.0,0.009086]
[1724276914316,1.24169798,61350.0,61349.0,0.009086]
[1724276918549,0.489004,61349.0,61348.0,0.009086]
[1724276918797,1.10200998,61349.0,61348.0,0.009086]
[1724276918994,1.10200998,61349.0,61348.0,1.26706]
[1724276919726,1.11400998,61349.0,61348.0,1.26706]
[1724276919925,1.12600998,61349.0,61348.0,1.26706]
[1724276925643,1.59990998,61349.0,61348.0,1.26706]
[1724276926375,1.92591298,61349.0,61348.0,1.26706]
[1724276930792,2.01972045,61349.0,61348.0,1.26706]
[1724276931039,1.92591298,61349.0,61348.0,1.26706]
[1724276932746,1.92673898,61349.0,61348.0,1.26706]
[1724276934902,2.25274198,61349.0,61348.0,1.26706]
[1724276935810,2.24074198,61349.0,61348.0,1.26706]
[1724276936342,2.24274198,61349.0,61348.0,1.26706]
[1724276936573,2.25674198,61349.0,61348.0,1.26706]
[1724276937483,2.24274198,61349.0,61348.0,1.26706]
[1724276937702,2.25674198,61349.0,61348.0,1.26706]
[1724276941053,2.42072076,61349.0,61348.0,1.26706]
[1724276941295,2.25674198,61349.0,61348.0,1.25733102]
[1724276941775,2.25874198,61349.0,61348.0,1.25733102]
[1724276942762,2.24474198,61349.0,61348.0,1.25733102]
[1724276943240,2.25874198,61349.0,61348.0,1.25733102]
[1724276943479,2.24474198,61349.0,61348.0,1.25733102]
[1724276943711,2.25874198,61349.0,61348.0,1.25733102]
[1724276944434,2.33183668,61349.0,61348.0,1.25733102]
[1724276944923,2.58474498,61349.0,61348.0,1.25733102]
[1724276945394,2.58474498,61349.0,61348.0,1.25823962]
[1724276945632,2.58474498,61349.0,61348.0,0.0009086]
[1724276946124,2.61031054,61349.0,61348.0,0.0009086]
[1724276946334,2.77428932,61349.0,61348.0,0.0009086]
[1724276947102,2.61031054,61349.0,61348.0,0.0009086]
[1724276947342,1.92148,61342.0,61341.0,0.009086]
[1724276947594,2.29918298,61342.0,61341.0,0.009086]
[1724276948069,2.34177293,61342.0,61341.0,0.009086]
[1724276948299,2.43954469,61342.0,61341.0,0.009086]
[1724276948540,2.61352347,61342.0,61341.0,0.009086]
[1724276949306,2.52675171,61342.0,61341.0,0.009086]
[1724276949545,2.38577293,61342.0,61341.0,0.009086]
[1724276950468,0.163062,61326.0,61325.0,0.284986]
[1724276950692,0.76688998,61326.0,61325.0,0.284986]
[1724276950919,1.11601498,61326.0,61325.0,0.284986]
[1724276951156,1.1415844,61326.0,61325.0,0.284986]
[1724276952391,1.1485844,61326.0,61325.0,0.284986]
[1724276952635,1.1465844,61326.0,61325.0,0.284986]
[1724276952855,1.1465844,61326.0,61314.0,0.0120362]
[1724276952856,0.489276,61315.0,61314.0,0.0120362]
[1724276953067,1.55416298,61315.0,61314.0,0.0120362]
[1724276953289,2.00334698,61315.0,61314.0,0.0120362]
[1724276953736,2.35510732,61315.0,61314.0,0.0120362]
[1724276953952,2.35610732,61315.0,61314.0,0.0120362]
[1724276954163,1.78040732,61315.0,61314.0,0.0120362]
[1724276954380,1.56792332,61315.0,61314.0,0.0120362]
[1724276954800,1.58192332,61315.0,61314.0,0.0120362]
[1724276955043,1.47847705,61315.0,61314.0,0.0120362]
[1724276955254,1.57817705,61315.0,61314.0,0.0120362]
[1724276955469,1.57817705,61315.0,61314.0,0.2957362]
[1724276955470,1.49247705,61315.0,61314.0,0.2957362]
[1724276955687,1.59217705,61315.0,61314.0,0.2957362]
[1724276955899,1.60617705,61315.0,61314.0,0.0120362]
[1724276956116,1.88497705,61315.0,61314.0,0.0120362]
[1724276956337,1.60617705,61315.0,61314.0,0.0120362]
[1724276956758,1.57817705,61315.0,61314.0,0.0120362]
[1724276957175,1.75164442,61315.0,61314.0,0.0120362]
[1724276957387,1.75164442,61315.0,61314.0,0.0129448]
[1724276957812,1.76564442,61315.0,61314.0,0.0129448]
[1724276959946,1.73764442,61315.0,61314.0,0.0129448]
[1724276960177,1.75164442,61315.0,61314.0,0.0129448]
[1724276960610,1.76564442,61315.0,61314.0,0.0129448]
[1724276961025,1.60617705,61315.0,61314.0,0.0129448]
[1724276961240,1.59217705,61315.0,61314.0,0.0129448]
[1724276961701,1.60617705,61315.0,61314.0,0.0129448]
[1724276961914,1.93236105,61315.0,61314.0,0.0129448]
[1724276962125,1.60617705,61315.0,61314.0,0.0129448]
[1724276962331,1.62017705,61315.0,61314.0,0.0129448]
[1724276962546,1.78415583,61315.0,61314.0,0.0129448]
[1724276962777,1.62017705,61315.0,61314.0,0.0129448]
[1724276963426,1.63719991,61315.0,61314.0,0.0129448]
[1724276964297,1.96338391,61315.0,61314.0,0.0129448]
[1724276964512,1.63719991,61315.0,61314.0,0.0129448]
[1724276964936,2.41656269,61315.0,61314.0,0.0129448]
[1724276965169,2.25258391,61315.0,61314.0,0.0129448]
[1724276965865,2.25158391,61315.0,61314.0,0.0129448]
[1724276966109,2.22358391,61315.0,61314.0,0.0129448]
[1724276966313,1.91139991,61315.0,61314.0,0.0129448]
[1724276966755,2.22358391,61315.0,61314.0,0.0129448]
[1724276966960,2.23758391,61315.0,61314.0,0.0129448]
[1724276967597,1.79769991,61315.0,61314.0,0.0129448]
[1724276967809,1.50949991,61315.0,61314.0,0.0129448]
[1724276968029,1.61294618,61315.0,61314.0,0.0129448]
[1724276968233,0.929187,61313.0,61312.0,0.4611]
[1724276968442,0.97948998,61313.0,61312.0,1.71843102]
[1724276968651,0.44079998,61313.0,61312.0,1.71843102]
[1724276968857,0.32709998,61313.0,61312.0,1.71843102]
[1724276969069,0.65329498,61313.0,61312.0,1.71843102]
[1724276969283,0.65329498,61313.0,61312.0,1.72142301]
[1724276969284,0.16400298,61313.0,61312.0,1.72142301]
[1724276969498,0.17800298,61313.0,61312.0,1.72142301]
[1724276969716,0.16400298,61313.0,61312.0,1.72142301]
[1724276969934,0.17800298,61313.0,61312.0,1.88452301]
[1724276970145,0.19100298,61313.0,61312.0,1.72142301]
[1724276970358,0.17800298,61313.0,61312.0,1.72142301]
[1724276970571,0.17200298,61313.0,61312.0,1.72142301]
[1724276970779,0.18000298,61313.0,61312.0,1.88452301]
[1724276970992,0.20300298,61313.0,61312.0,2.21072301]
[1724276971412,0.039,61313.0,61312.0,2.21072301]
[1724276972038,0.031,61313.0,61312.0,2.21072301]
[1724276972252,0.033,61313.0,61312.0,2.53692301]
[1724276972672,0.025,61313.0,61312.0,2.53692301]
[1724276972878,0.002,61313.0,61312.0,2.53692301]
[1724276973099,0.025,61313.0,61312.0,2.53692301]
[1724276973306,0.004,61313.0,61312.0,2.53692301]
[1724276973512,0.027,61313.0,61312.0,2.53692301]
[1724276975593,0.02657979,61313.0,61312.0,2.53692301]
[1724276976016,0.02657979,61313.0,61312.0,2.86312301]
[1724276976225,0.02657979,61313.0,61312.0,2.97682301]
[1724276976834,0.02457979,61313.0,61312.0,2.97682301]
[1724276977079,0.00157979,61313.0,61312.0,2.97682301]
[1724276977266,0.00257979,61313.0,61312.0,2.97782301]
[1724276978751,0.00257979,61313.0,61312.0,2.21069497]
[1724276979587,0.001,61313.0,61312.0,2.21069497]
[1724276979810,0.001,61313.0,61312.0,2.09400298]
[1724276980040,0.02557634,61315.0,61314.0,1.47084199]
[1724276980249,0.02557634,61315.0,61314.0,1.92764199]
[1724276981997,0.02557634,61315.0,61314.0,1.93264199]
[1724276982210,0.02657634,61315.0,61314.0,1.93264199]
[1724276983265,0.02657634,61315.0,61314.0,1.93464199]
[1724276983471,0.02757634,61315.0,61314.0,1.93464199]
[1724276983680,0.02757634,61315.0,61314.0,2.09964497]
[1724276983890,0.02757634,61315.0,61314.0,1.61036197]
[1724276984588,0.02757634,61315.0,61314.0,2.09964497]
[1724276985663,0.02757634,61315.0,61314.0,2.19964497]
[1724276986945,0.02757634,61315.0,61314.0,6.57664497]
[1724276987783,0.02757634,61315.0,61314.0,6.90483397]
[1724276988227,0.02757634,61315.0,61314.0,6.91506121]
[1724276988436,0.02757634,61315.0,61314.0,6.91706121]
[1724276991848,0.02757634,61315.0,61314.0,7.59006121]
[1724276992521,0.02657634,61315.0,61314.0,7.58306121]
[1724276992733,0.05,61321.0,61320.0,1.93779799]
[1724276992956,0.05,61321.0,61320.0,2.21550097]
[1724276994091,0.051,61321.0,61320.0,2.21750097]
[1724276994751,0.052,61321.0,61320.0,2.23150097]
[1724276995381,0.052827,61321.0,61320.0,2.23150097]
[1724276995873,0.052827,61321.0,61320.0,2.23350097]
[1724276996351,0.052827,61321.0,61320.0,2.23150097]
[1724276996839,0.052827,61321.0,61320.0,2.23350097]
[1724276997072,0.052827,61321.0,61320.0,2.55965797]
[1724276998241,0.0524344,61321.0,61320.0,2.55965797]
[1724276998960,0.0524344,61321.0,61320.0,2.22950097]
[1724277001091,0.0524344,61321.0,61320.0,2.23150097]
[1724277001811,0.0524344,61321.0,61320.0,2.11780097]
[1724277002048,0.0524344,61321.0,61320.0,2.23150097]
[1724277002711,0.0524344,61321.0,61320.0,2.22950097]
[1724277002922,0.0524344,61321.0,61320.0,2.23350097]
[1724277003351,0.0524344,61321.0,61320.0,2.33350097]
[1724277004699,0.0524344,61321.0,61320.0,2.32950097]
[1724277004929,0.0524344,61321.0,61320.0,2.33350097]
[1724277005339,0.0524344,61321.0,61320.0,2.32950097]
[1724277005551,0.0524344,61321.0,61320.0,2.33150097]
[1724277006186,0.0524344,61321.0,61320.0,2.33350097]
[1724277006996,0.0524344,61321.0,61320.0,2.33440957]
[1724277008276,0.1833,61336.0,61335.0,1.38108803]
[1724277008485,0.2063,61336.0,61335.0,1.38108803]
[1724277008906,0.23186565,61336.0,61335.0,1.38108803]
[1724277009315,0.23386565,61336.0,61335.0,1.38108803]
[1724277009731,0.23586565,61336.0,61335.0,1.38108803]
[1724277011470,0.51496565,61336.0,61335.0,1.38108803]
[1724277013409,0.51496565,61336.0,61335.0,1.05501003]
[1724277013826,0.51496565,61336.0,61335.0,0.89197103]
[1724277015496,0.56740005,61336.0,61335.0,0.89197103]
[1724277019739,0.56822605,61336.0,61335.0,0.89197103]
[1724277023432,0.56822605,61336.0,61335.0,0.83953663]
[1724277023850,0.56822605,61336.0,61335.0,0.78710223]
[1724277024075,0.58524891,61336.0,61335.0,0.78710223]
[1724277026464,0.58524891,61336.0,61335.0,0.95014123]
[1724277027098,0.58524891,61336.0,61335.0,0.78710223]
[1724277030741,0.56822605,61336.0,61335.0,0.78710223]
[1724277032040,0.62066045,61336.0,61335.0,0.78710223]
[1724277033161,0.78369645,61336.0,61335.0,0.78411024]
[1724277033377,1.59984343,61336.0,61335.0,0.78411024]
[1724277034025,1.92591543,61336.0,61335.0,0.58411024]
[1724277034891,1.92391543,61336.0,61335.0,0.53167584]
[1724277035512,1.92391543,61336.0,61335.0,0.47924144]
[1724277035777,1.92191543,61336.0,61335.0,0.47924144]
[1724277036209,1.92891543,61336.0,61335.0,0.48024144]
[1724277036443,1.92191543,61336.0,61335.0,0.47924144]
[1724277036656,1.93821134,61336.0,61335.0,0.48024144]
[1724277037103,2.37528334,61336.0,61335.0,0.43340488]
[1724277037324,2.37528334,61336.0,61320.0,0.0009086]
[1724277037325,1.29998,61321.0,61320.0,0.0009086]
[1724277037534,1.90383498,61321.0,61320.0,0.0009086]
[1724277037774,2.02683498,61321.0,61320.0,0.0009086]
[1724277037984,2.05241122,61321.0,61320.0,0.0009086]
[1724277038190,2.10130862,61321.0,61320.0,0.0009086]
[1724277038414,2.37856322,61321.0,61320.0,0.0009086]
[1724277038891,1.93871122,61321.0,61320.0,0.0009086]
[1724277039135,0.02557624,61321.0,61320.0,0.0009086]
[1724277039377,0.02557624,61321.0,61320.0,0.1639866]
[1724277039822,0.04957624,61321.0,61320.0,0.1649866]
[1724277040037,0.04957624,61321.0,61320.0,0.4911436]
[1724277040250,0.03557624,61321.0,61320.0,0.4911436]
[1724277040481,0.02557624,61321.0,61320.0,0.4901436]
[1724277040690,0.0655991,61321.0,61320.0,0.1639866]
[1724277040931,0.0845991,61321.0,61320.0,0.1649866]
[1724277042428,0.0755991,61321.0,61320.0,0.1649866]
[1724277042650,0.0755991,61321.0,61320.0,0.1679866]
[1724277042861,0.0655991,61321.0,61320.0,0.1669866]
[1724277043299,0.0655991,61321.0,61320.0,0.1679866]
[1724277044526,0.0655991,61321.0,61320.0,0.1689866]
[1724277044990,0.0655991,61321.0,61320.0,0.4951436]
[1724277045778,0.0655991,61321.0,61320.0,1.7549436]
[1724277046025,0.0655991,61321.0,61320.0,1.7509436]
[1724277046256,0.0655991,61321.0,61320.0,1.7529436]
[1724277046512,0.0655991,61321.0,61320.0,1.7569436]
[1724277047479,0.0655991,61321.0,61320.0,1.75893559]
[1724277048216,0.0655991,61321.0,61320.0,2.08509259]
[1724277048449,0.0655991,61321.0,61320.0,2.36229259]
[1724277051370,0.0425991,61321.0,61320.0,2.36229259]
[1724277051609,0.0655991,61321.0,61320.0,2.36229259]
[1724277051855,0.0655991,61321.0,61320.0,2.68844959]
[1724277052335,0.04857624,61321.0,61320.0,2.68844959]
[1724277052557,0.02557624,61321.0,61320.0,2.68844959]
[1724277054822,0.02557624,61321.0,61320.0,2.87984959]
[1724277057881,0.02557624,61321.0,61320.0,2.87784959]
[1724277058291,0.02557624,61321.0,61320.0,2.87584959]
[1724277058464,0.07801064,61321.0,61320.0,2.87584959]
[1724277058707,0.07801064,61321.0,61320.0,2.87884959]
[1724277058878,0.07901064,61321.0,61320.0,2.88684959]
[1724277059079,0.07901064,61321.0,61320.0,2.88184959]
[1724277059286,0.08001064,61321.0,61320.0,2.89084959]
[1724277062725,0.07901064,61321.0,61320.0,2.88284959]
[1724277063540,0.07901064,61321.0,61320.0,2.87384959]
[1724277063744,0.07801064,61321.0,61320.0,2.87384959]
[1724277064406,0.07901064,61321.0,61320.0,2.88084959]
[1724277064583,0.07901064,61321.0,61320.0,3.37100957]
[1724277064782,0.07801064,61321.0,61320.0,3.36400957]
[1724277065208,0.07901064,61321.0,61320.0,3.37100957]
[1724277065632,0.08001064,61321.0,61320.0,3.37900957]
[1724277065831,0.07801064,61321.0,61320.0,3.36400957]
[1724277066187,0.08001064,61321.0,61320.0,3.38100957]
[1724277066394,0.08001064,61321.0,61320.0,3.37200957]
[1724277066395,0.07901064,61321.0,61320.0,3.37200957]
[1724277066838,0.08001064,61321.0,61320.0,3.38500957]
[1724277067441,0.07901064,61321.0,61320.0,3.37700957]
[1724277067643,0.07901064,61321.0,61320.0,3.39100957]
[1724277067644,0.08001064,61321.0,61320.0,3.39100957]
[1724277070269,0.0970335,61321.0,61320.0,3.39100957]
[1724277075444,0.0970335,61321.0,61320.0,3.50470957]
[1724277080554,0.09664104,61321.0,61320.0,3.50470957]
[1724277080761,0.14907544,61321.0,61320.0,3.50470957]
[1724277083498,0.14907544,61321.0,61320.0,3.50380097]
[1724277085958,0.14907544,61321.0,61320.0,3.22660097]
[1724277090257,0.14907544,61321.0,61320.0,3.2752165]
[1724277090661,0.14907544,61321.0,61320.0,3.22660097]
[1724277090880,0.14907544,61321.0,61320.0,3.2752165]
[1724277091284,0.14907544,61321.0,61320.0,3.27613167]
[1724277091731,0.14907544,61321.0,61320.0,3.22750847]
[1724277092558,0.14907544,61321.0,61320.0,3.22850847]
[1724277093431,0.14907544,61321.0,61320.0,3.66301274]
[1724277093619,0.14907544,61321.0,61320.0,3.59008944]
[1724277096479,0.14907544,61321.0,61320.0,3.69008944]
[1724277097491,0.1069,61329.0,61328.0,1.141402]
[1724277097659,0.1069,61329.0,61328.0,1.25809399]
[1724277098024,0.13246652,61329.0,61328.0,1.25809399]
[1724277098780,0.13346652,61329.0,61328.0,1.26509399]
[1724277099589,0.13346652,61329.0,61328.0,1.27109399]
[1724277101323,0.13346652,61329.0,61328.0,1.15739399]
[1724277101527,0.13346652,61329.0,61328.0,1.27109399]
[1724277102764,0.13429252,61329.0,61328.0,1.27109399]
[1724277103434,0.13429252,61329.0,61328.0,2.38181855]
[1724277103656,0.21269252,61329.0,61328.0,2.38181855]
[1724277104279,0.13429252,61329.0,61328.0,2.38181855]
[1724277109475,0.13429252,61329.0,61328.0,2.4305116]
[1724277110393,0.13429252,61329.0,61328.0,2.38181855]
[1724277111329,0.13429252,61329.0,61328.0,2.43050063]
[1724277111563,0.13429252,61329.0,61328.0,2.38181855]
[1724277112259,0.13429252,61329.0,61328.0,2.43049919]
[1724277112499,0.13429252,61329.0,61328.0,2.38181855]
[1724277112737,0.13429252,61329.0,61328.0,2.43049769]
[1724277113446,0.15131538,61329.0,61328.0,2.43049769]
[1724277114130,0.15131538,61329.0,61328.0,2.31679769]
[1724277114587,0.20374978,61329.0,61328.0,2.26811855]
[1724277114826,0.20374978,61329.0,61328.0,2.31679769]
[1724277115290,0.20374978,61329.0,61328.0,2.26811855]
[1724277127036,0.28254978,61329.0,61328.0,2.26811855]
[1724277132226,0.23011538,61329.0,61328.0,2.26811855]
[1724277138275,0.04441538,61329.0,61328.0,2.26811855]
[1724277138484,0.14121538,61329.0,61328.0,2.26811855]
[1724277138684,0.21631538,61329.0,61328.0,2.26811855]
[1724277142755,0.14121538,61329.0,61328.0,2.26811855]
[1724277145766,0.04441538,61329.0,61328.0,2.34471855]
[1724277148996,0.04441538,61329.0,61328.0,2.34172656]
[1724277149690,0.04441538,61329.0,61328.0,2.34471855]
[1724277150391,0.04441538,61329.0,61328.0,2.26811855]
[1724277150591,0.14201538,61329.0,61328.0,2.26811855]
[1724277150946,0.04441538,61329.0,61328.0,2.26811855]
[1724277156455,0.04441538,61329.0,61328.0,2.44301855]
[1724277156676,0.04441538,61329.0,61328.0,2.34231855]
[1724277161290,0.04441538,61329.0,61328.0,2.43621855]
[1724277162476,0.04441538,61329.0,61328.0,2.76233355]
[1724277163233,0.04402283,61329.0,61328.0,2.76233355]
[1724277164049,0.04402283,61329.0,61328.0,2.81093872]
[1724277164416,0.04402283,61329.0,61328.0,2.81093649]
[1724277164578,0.04402283,61329.0,61328.0,2.76233355]
[1724277164779,0.04402283,61329.0,61328.0,2.81093678]
[1724277165821,0.04402283,61329.0,61328.0,2.76233355]
[1724277166021,0.04402283,61329.0,61328.0,2.81091791]
[1724277166245,0.04402283,61329.0,61328.0,2.87603355]
[1724277169670,0.04402283,61329.0,61328.0,2.76233355]
[1724277169877,0.04402283,61329.0,61328.0,2.87603355]
[1724277170112,0.04402283,61329.0,61328.0,2.34231855]